fUSD/lending_fUSD_20240925
["ID","MTS","AMOUNT","RATE_DAILY","PERIOD"]
[339169061,1727273444142,-939.62,0.00012891,2]
[339169062,1727273444151,-5800.0,0.00012891,2]
[339169063,1727273444162,-500.0,0.00012892,2]
[339169064,1727273444172,-500.0,0.00012892,2]
[339169065,1727273444182,-500.0,0.00012892,2]
[339169066,1727273444191,-500.0,0.00012892,2]
[339169067,1727273444202,-500.0,0.00012892,2]
[339169068,1727273444211,-500.0,0.00012892,2]
[339169069,1727273444221,-500.0,0.00012892,2]
[339169070,1727273444230,-500.0,0.00012892,2]
[339169071,1727273444240,-500.0,0.00012892,2]
[339169072,1727273444250,-500.0,0.00012892,2]
[339169073,1727273444259,-500.0,0.00012892,2]
[339169074,1727273444269,-500.0,0.00012892,2]
[339169075,1727273444278,-500.0,0.00012892,2]
[339169076,1727273444287,-577.02,0.00012892,2]
[339169077,1727273444297,-500.0,0.00012892,2]
[339169078,1727273444306,-899.48,0.00012892,2]
[339169079,1727273444316,-500.0,0.00012892,2]
[339169080,1727273444325,-597.1,0.00012892,2]
[339169081,1727273444336,-979.75,0.00012892,2]
[339169082,1727273444346,-900.95,0.00012892,2]
[339169083,1727273444355,-649.74,0.00012892,2]
[339169084,1727273444365,-500.0,0.00012892,2]
[339169085,1727273444374,-500.0,0.00012892,2]
[339169086,1727273444385,-500.0,0.00012892,2]
[339169087,1727273444394,-500.0,0.00012892,2]
[339169088,1727273444403,-500.0,0.00012892,2]
[339169089,1727273444413,-500.0,0.00012892,2]
[339169090,1727273444422,-500.0,0.00012892,2]
[339169091,1727273444432,-724.52,0.00012892,2]
[339169092,1727273444441,-500.0,0.00012892,2]
[339169093,1727273444450,-500.0,0.00012892,2]
[339169094,1727273444459,-500.0,0.00012892,2]
[339169095,1727273444469,-516.67,0.00012892,2]
[339169096,1727273444478,-500.0,0.00012892,2]
[339169097,1727273444489,-500.0,0.00012892,2]
[339169098,1727273444498,-500.0,0.00012892,2]
[339169099,1727273444508,-500.0,0.00012892,2]
[339169100,1727273444518,-512.4008119,0.00012892,2]
[339169101,1727273444527,-500.0,0.00012892,2]
[339169102,1727273444536,-500.0,0.00012892,2]
[339169103,1727273444546,-500.0,0.00012892,2]
[339169104,1727273444555,-500.0,0.00012892,2]
[339169105,1727273444565,-500.0,0.00012892,2]
[339169106,1727273444574,-500.0,0.00012892,2]
[339169107,1727273444585,-500.0,0.00012892,2]
[339169108,1727273444594,-500.0,0.00012892,2]
[339169109,1727273444604,-500.0,0.00012892,2]
[339169110,1727273444613,-500.0,0.00012893,2]
[339169111,1727273444623,-500.0,0.00012893,2]
[339169112,1727273444632,-500.0,0.00012893,2]
[339169113,1727273444642,-2475.58,0.00012893,2]
[339169114,1727273444651,-500.0,0.00012893,2]
[339169115,1727273444660,-1037.38,0.00012893,2]
[339169116,1727273444669,-500.0,0.00012893,2]
[339169117,1727273444678,-560.87,0.00012893,2]
[339169118,1727273444688,-500.0,0.00012893,2]
[339169119,1727273444697,-500.0,0.00012893,2]
[339169120,1727273444706,-500.0,0.00012893,2]
[339169121,1727273444716,-500.0,0.00012893,2]
[339169122,1727273444725,-500.0,0.00012893,2]
[339169123,1727273444735,-500.0,0.00012893,2]
[339169124,1727273444744,-500.0,0.00012893,2]
[339169125,1727273444753,-219.99237034,0.00012893,2]
[339169126,1727273444762,-500.0,0.00012893,2]
[339169127,1727273444771,-526.08,0.00012893,2]
[339169128,1727273444780,-1335.16,0.00012893,2]
[339169129,1727273444790,-819.91,0.00012893,2]
[339169130,1727273444799,-500.0,0.00012893,2]
[339169131,1727273444808,-500.0,0.00012893,2]
[339169132,1727273444817,-450.96651103,0.00012893,2]
[339169133,1727273444827,-500.0,0.00012893,2]
[339169134,1727273444838,-500.0,0.00012893,2]
[339169135,1727273444847,-500.0,0.00012893,2]
[339169136,1727273444856,-500.0,0.00012893,2]
[339169137,1727273444866,-676.36,0.00012893,2]
[339169138,1727273444875,-500.0,0.00012893,2]
[339169139,1727273444885,-501.55477816,0.00012894,2]
[339169140,1727273444896,-617.20034311,0.00012894,2]
[339169141,1727273444905,-500.0,0.00012894,2]
[339169142,1727273444914,-500.0,0.00012894,2]
[339169143,1727273444923,-500.0,0.00012894,2]
[339169144,1727273444932,-500.0,0.00012894,2]
[339169145,1727273444942,-500.0,0.00012894,2]
[339169146,1727273444950,-500.0,0.00012894,2]
[339169147,1727273444959,-500.0,0.00012894,2]
[339169148,1727273444969,-500.0,0.00012894,2]
[339169149,1727273444979,-500.0,0.00012894,2]
[339169150,1727273444988,-500.0,0.00012894,2]
[339169151,1727273444997,-500.0,0.00012894,2]
[339169152,1727273445010,-500.0,0.00012894,2]
[339169153,1727273445019,-500.0,0.00012894,2]
[339169154,1727273445029,-623.20327294,0.00012894,2]
[339169155,1727273445038,-500.0,0.00012894,2]
[339169156,1727273445047,-500.0,0.00012894,2]
[339169157,1727273445057,-500.0,0.00012894,2]
[339169158,1727273445066,-500.0,0.00012894,2]
[339169159,1727273445075,-500.0,0.00012894,2]
[339169160,1727273445087,-500.0,0.00012894,2]
[339169161,1727273445096,-500.0,0.00012894,2]
[339169162,1727273445106,-500.0,0.00012894,2]
[339169163,1727273445115,-500.0,0.00012894,2]
[339169164,1727273445125,-500.0,0.00012894,2]
[339169165,1727273445134,-500.0,0.00012894,2]
[339169166,1727273445143,-1136.59,0.00012894,2]
[339169167,1727273445153,-500.0,0.00012894,2]
[339169168,1727273445163,-1120.77,0.00012894,2]
[339169169,1727273445172,-1147.34,0.00012894,2]
[339169170,1727273445182,-552.27,0.00012894,2]
[339169171,1727273445191,-1268.86,0.00012894,2]
[339169172,1727273445200,-1445.38,0.00012894,2]
[339169173,1727273445209,-500.0,0.00012894,2]
[339169174,1727273445219,-177.66,0.00012894,2]
[339169175,1727273445228,-500.0,0.00012894,2]
[339169176,1727273445237,-500.0,0.00012894,2]
[339169177,1727273445246,-500.0,0.00012894,2]
[339169178,1727273445255,-500.0,0.00012894,2]
[339169179,1727273445265,-500.0,0.00012894,2]
[339169180,1727273445274,-4164.09,0.00012894,2]
[339169181,1727273445283,-6445.88,0.00012894,2]
[339169182,1727273445292,-500.0,0.00012894,2]
[339169183,1727273445302,-5633.44,0.00012894,2]
[339169184,1727273445311,-500.0,0.00012894,2]
[339169185,1727273445321,-5377.26,0.00012894,2]
[339169186,1727273445330,-1854.31,0.00012894,2]
[339169187,1727273445351,-500.0,0.00012894,2]
[339169188,1727273445361,-2309.81,0.00012894,2]
[339169189,1727273445372,-500.0,0.00012894,2]
[339169190,1727273445386,-1580.12,0.00012894,2]
[339169191,1727273445399,-1165.05,0.00012894,2]
[339169192,1727273445412,-500.0,0.00012894,2]
[339169193,1727273445423,-500.0,0.00012894,2]
[339169195,1727273445434,-500.0,0.00012894,2]
[339169196,1727273445446,-500.0,0.00012894,2]
[339169197,1727273445458,-500.0,0.00012894,2]
[339169198,1727273445470,-500.0,0.00012894,2]
[339169200,1727273445482,-1132.65,0.00012894,2]
[339169201,1727273445494,-500.0,0.00012894,2]
[339169202,1727273445506,-500.0,0.00012894,2]
[339169203,1727273445519,-977.16,0.00012894,2]
[339169204,1727273445531,-1893.02,0.00012894,2]
[339169205,1727273445543,-500.0,0.00012894,2]
[339169206,1727273445555,-500.0,0.00012894,2]
[339169207,1727273445566,-4871.47,0.00012894,2]
[339169208,1727273445579,-500.0,0.00012894,2]
[339169209,1727273445594,-500.0,0.00012894,2]
[339169210,1727273445606,-500.0,0.00012894,2]
[339169211,1727273445619,-500.0,0.00012894,2]
[339169212,1727273445632,-500.0,0.00012894,2]
[339169213,1727273445644,-500.0,0.00012894,2]
[339169214,1727273445654,-2373.4,0.00012894,2]
[339169215,1727273445664,-1030.35,0.00012894,2]
[339169216,1727273445675,-2171.5,0.00012894,2]
[339169217,1727273445686,-500.0,0.00012894,2]
[339169218,1727273445697,-286.1109324,0.00012894,2]
[339169219,1727273445709,-500.0,0.00012894,2]
[339169220,1727273445720,-500.0,0.00012894,2]
[339169221,1727273445733,-1459.23762298,0.00012894,2]
[339169222,1727273445756,-3600.21237702,0.00012894,2]
[339169223,1727273445769,-2799.94,0.00012894,2]
[339169224,1727273445782,-519.84,0.00012894,2]
[339169225,1727273445794,-500.0,0.00012894,2]
[339169226,1727273445805,-1477.97,0.00012894,2]
[339169227,1727273445815,-500.0,0.00012894,2]
[339169228,1727273445825,-3612.8,0.00012894,2]
[339169229,1727273445836,-500.0,0.00012894,2]
[339169230,1727273445847,-500.0,0.00012894,2]
[339169231,1727273445859,-1281.84,0.00012894,2]
[339169232,1727273445871,-500.0,0.00012894,2]
[339169233,1727273445883,-500.0,0.00012894,2]
[339169234,1727273445893,-450.27126688,0.00012894,2]
[339169235,1727273445905,-500.0,0.00012894,2]
[339169236,1727273445917,-500.0,0.00012894,2]
[339169237,1727273445927,-896.43,0.00012894,2]
[339169238,1727273445940,-637.98902105,0.00012894,2]
[339169239,1727273445951,-500.0,0.00012894,2]
[339169240,1727273445963,-505.21,0.00012894,2]
[339169241,1727273445975,-500.0,0.00012894,2]
[339169242,1727273445986,-508.45,0.00012894,2]
[339169243,1727273446000,-2991.08,0.00012894,2]
[339169244,1727273446013,-500.0,0.00012894,2]
[339169245,1727273446024,-500.0,0.00012894,2]
[339169246,1727273446036,-3918.91,0.00012894,2]
[339169247,1727273446047,-502.70981603,0.00012894,2]
[339169248,1727273446058,-1947.44,0.00012894,2]
[339169249,1727273446070,-500.0,0.00012894,2]
[339169250,1727273446083,-1462.0,0.00012894,2]
[339169251,1727273446097,-500.0,0.00012894,2]
[339169252,1727273446108,-500.0,0.00012894,2]
[339169253,1727273446119,-501.27107782,0.00012894,2]
[339169254,1727273446130,-500.0,0.00012894,2]
[339169255,1727273446141,-500.0,0.00012894,2]
[339169256,1727273446151,-500.0,0.00012894,2]
[339169257,1727273446162,-500.0,0.00012894,2]
[339169258,1727273446173,-500.0,0.00012894,2]
[339169259,1727273446186,-500.0,0.00012894,2]
[339169260,1727273446196,-500.0,0.00012894,2]
[339169261,1727273446207,-500.0,0.00012894,2]
[339169262,1727273446217,-500.0,0.00012894,2]
[339169263,1727273446229,-500.0,0.00012894,2]
[339169264,1727273446240,-500.0,0.00012894,2]
[339169265,1727273446250,-500.0,0.00012894,2]
[339169266,1727273446261,-500.0,0.00012894,2]
[339169267,1727273446272,-630.53,0.00012894,2]
[339169268,1727273446282,-500.0,0.00012894,2]
[339169269,1727273446293,-500.0,0.00012894,2]
[339169270,1727273446304,-577.45,0.00012894,2]
[339169271,1727273446315,-724.93,0.00012894,2]
[339169272,1727273446326,-500.0,0.00012894,2]
[339169273,1727273446338,-500.0,0.00012894,2]
[339169274,1727273446348,-500.0,0.00012894,2]
[339169275,1727273446360,-500.0,0.00012894,2]
[339169276,1727273446370,-500.0,0.00012894,2]
[339169277,1727273446381,-500.0,0.00012894,2]
[339169278,1727273446392,-500.0,0.00012894,2]
[339169279,1727273446403,-500.0,0.00012894,2]
[339169280,1727273446414,-500.0,0.00012894,2]
[339169281,1727273446425,-529.98,0.00012894,2]
[339169282,1727273446437,-1019.3,0.00012894,2]
[339169283,1727273446447,-500.0,0.00012894,2]
[339169284,1727273446458,-500.0,0.00012894,2]
[339169285,1727273446469,-500.0,0.00012894,2]
[339169286,1727273446480,-500.0,0.00012894,2]
[339169287,1727273446491,-500.0,0.00012894,2]
[339169288,1727273446501,-1944.79,0.00012894,2]
[339169289,1727273446512,-500.0,0.00012894,2]
[339169290,1727273446523,-500.0,0.00012894,2]
[339169291,1727273446534,-500.0,0.00012894,2]
[339169292,1727273446544,-500.0,0.00012894,2]
[339169293,1727273446555,-594.26030275,0.00012894,2]
[339169294,1727273446566,-500.0,0.00012894,2]
[339169295,1727273446576,-500.0,0.00012894,2]
[339169296,1727273446589,-500.0,0.00012894,2]
[339169297,1727273446599,-500.0,0.00012894,2]
[339169298,1727273446611,-3609.64,0.00012894,2]
[339169299,1727273446621,-500.0,0.00012894,2]
[339169300,1727273446632,-369.38,0.00012894,2]
[339169301,1727273446643,-1197.3,0.00012894,2]
[339169302,1727273446654,-500.0,0.00012894,2]
[339169303,1727273446664,-500.0,0.00012894,2]
[339169304,1727273446675,-500.0,0.00012894,2]
[339169305,1727273446686,-500.0,0.00012894,2]
[339169306,1727273446696,-500.0,0.00012894,2]
[339169307,1727273446707,-500.0,0.00012894,2]
[339169308,1727273446718,-1485.82,0.00012894,2]
[339169309,1727273446729,-500.0,0.00012894,2]
[339169310,1727273446740,-500.0,0.00012894,2]
[339169311,1727273446750,-192.06,0.00012894,2]
[339169312,1727273446762,-500.0,0.00012894,2]
[339169313,1727273446772,-500.0,0.00012894,2]
[339169314,1727273446782,-500.0,0.00012894,2]
[339169315,1727273446793,-500.0,0.00012894,2]
[339169316,1727273446804,-500.0,0.00012894,2]
[339169317,1727273446817,-500.0,0.00012894,2]
[339169318,1727273446827,-500.0,0.00012894,2]
[339169319,1727273446838,-500.0,0.00012894,2]
[339169320,1727273446849,-175.88,0.00012894,2]
[339169321,1727273446860,-500.0,0.00012894,2]
[339169322,1727273446871,-627.08,0.00012894,2]
[339169323,1727273446882,-500.0,0.00012894,2]
[339169324,1727273446893,-500.0,0.00012894,2]
[339169325,1727273446904,-500.0,0.00012894,2]
[339169326,1727273446915,-211.71403323,0.00012894,2]
[339169327,1727273446926,-500.0,0.00012894,2]
[339169328,1727273446937,-500.0,0.00012894,2]
[339169329,1727273446948,-500.0,0.00012894,2]
[339169330,1727273446959,-518.4,0.00012894,2]
[339169331,1727273446969,-500.0,0.00012894,2]
[339169332,1727273446980,-500.0,0.00012894,2]
[339169333,1727273446991,-501.17173218,0.00012894,2]
[339169334,1727273447003,-500.0,0.00012894,2]
[339169335,1727273447015,-2171.94,0.00012894,2]
[339169336,1727273447026,-3682.71,0.00012894,2]
[339169337,1727273447037,-500.0,0.00012894,2]
[339169338,1727273447048,-500.0,0.00012894,2]
[339169339,1727273447060,-500.0,0.00012894,2]
[339169340,1727273447071,-500.0,0.00012894,2]
[339169341,1727273447082,-500.0,0.00012894,2]
[339169342,1727273447095,-2049.97,0.00012894,2]
[339169343,1727273447106,-2260.79,0.00012894,2]
[339169344,1727273447117,-500.0,0.00012894,2]
[339169345,1727273447128,-500.0,0.00012894,2]
[339169346,1727273447139,-500.0,0.00012894,2]
[339169347,1727273447151,-500.0,0.00012894,2]
[339169348,1727273447162,-500.0,0.00012894,2]
[339169349,1727273447174,-942.02,0.00012894,2]
[339169350,1727273447185,-500.0,0.00012894,2]
[339169351,1727273447197,-578.1661262,0.00012894,2]
[339169352,1727273447207,-500.0,0.00012894,2]
[339169353,1727273447219,-632.57,0.00012894,2]
[339169354,1727273447230,-1230.7,0.00012894,2]
[339169355,1727273447240,-670.46,0.00012894,2]
[339169356,1727273447250,-500.0,0.00012894,2]
[339169357,1727273447260,-1780.49,0.00012894,2]
[339169358,1727273447270,-918.46,0.00012894,2]
[339169359,1727273447279,-500.0,0.00012894,2]
[339169360,1727273447289,-572.81,0.00012894,2]
[339169361,1727273447298,-620.78,0.00012894,2]
[339169362,1727273447308,-500.0,0.00012894,2]
[339169363,1727273447318,-500.0,0.00012894,2]
[339169364,1727273447327,-2924.04,0.00012894,2]
[339169365,1727273447338,-500.0,0.00012894,2]
[339169366,1727273447348,-500.0,0.00012894,2]
[339169367,1727273447357,-500.0,0.00012894,2]
[339169368,1727273447367,-500.0,0.00012894,2]
[339169369,1727273447376,-779.51,0.00012894,2]
[339169370,1727273447385,-576.64,0.00012894,2]
[339169371,1727273447395,-939.62,0.00012894,2]
[339169372,1727273447404,-500.0,0.00012895,2]
[339169373,1727273447416,-500.0,0.00012895,2]
[339169374,1727273447426,-500.0,0.00012895,2]
[339169375,1727273447751,-272.43128892,0.00012895,2]
[339169376,1727273447773,-500.0,0.00012895,2]
[339169377,1727273447784,-500.0,0.00012895,2]
[339169378,1727273447794,-500.0,0.00012895,2]
[339169379,1727273447804,-500.0,0.00012895,2]
[339169380,1727273447813,-269.643,0.00012895,2]
[339169381,1727273447823,-500.0,0.00012895,2]
[339169382,1727273447833,-1136.59,0.00012895,2]
[339169383,1727273447846,-1120.77,0.00012895,2]
[339169384,1727273447855,-1147.34,0.00012895,2]
[339169385,1727273447865,-552.27,0.00012895,2]
[339169386,1727273447875,-500.0,0.00012895,2]
[339169387,1727273447885,-500.0,0.00012895,2]
[339169388,1727273447895,-500.0,0.00012895,2]
[339169389,1727273447904,-500.0,0.00012895,2]
[339169390,1727273447914,-500.0,0.00012895,2]
[339169391,1727273447923,-577.02,0.00012895,2]
[339169392,1727273447933,-500.0,0.00012895,2]
[339169393,1727273447942,-899.48,0.00012895,2]
[339169394,1727273447951,-500.0,0.00012895,2]
[339169395,1727273447961,-597.1,0.00012895,2]
[339169396,1727273447971,-979.75,0.00012895,2]
[339169397,1727273447980,-900.95,0.00012895,2]
[339169398,1727273447990,-649.74,0.00012895,2]
[339169399,1727273447999,-1445.38,0.00012895,2]
[339169400,1727273448016,-500.0,0.00012895,2]
[339169401,1727273448026,-500.0,0.00012895,2]
[339169402,1727273448035,-500.0,0.00012895,2]
[339169403,1727273448046,-500.0,0.00012895,2]
[339169404,1727273448056,-500.0,0.00012895,2]
[339169405,1727273448066,-500.0,0.00012895,2]
[339169406,1727273448076,-500.0,0.00012895,2]
[339169407,1727273448088,-500.0,0.00012895,2]
[339169408,1727273448098,-500.0,0.00012895,2]
[339169409,1727273448108,-500.0,0.00012895,2]
[339169410,1727273448118,-500.0,0.00012895,2]
[339169411,1727273448128,-724.52,0.00012895,2]
[339169412,1727273448138,-500.0,0.00012895,2]
[339169413,1727273448147,-500.0,0.00012895,2]
[339169414,1727273448157,-500.0,0.00012895,2]
[339169415,1727273448167,-516.67,0.00012895,2]
[339169416,1727273448178,-500.0,0.00012895,2]
[339169417,1727273448187,-500.0,0.00012895,2]
[339169418,1727273448197,-500.0,0.00012895,2]
[339169419,1727273448207,-500.0,0.00012895,2]
[339169420,1727273448216,-2373.4,0.00012895,2]
[339169421,1727273448227,-2171.5,0.00012895,2]
[339169422,1727273448236,-2799.94,0.00012895,2]
[339169423,1727273448246,-1477.97,0.00012895,2]
[339169424,1727273448256,-500.0,0.00012895,2]
[339169425,1727273448266,-500.0,0.00012895,2]
[339169426,1727273448276,-500.79639599,0.00012895,2]
[339169427,1727273448285,-500.0,0.00012895,2]
[339169428,1727273448295,-500.0,0.00012895,2]
[339169429,1727273448306,-500.0,0.00012895,2]
[339169430,1727273448315,-1947.44,0.00012895,2]
[339169431,1727273448325,-500.0,0.00012895,2]
[339169432,1727273448335,-527.46938726,0.00012895,2]
[339169433,1727273448352,-630.53,0.00012895,2]
[339169434,1727273448362,-500.0,0.00012895,2]
[339169435,1727273448372,-500.0,0.00012895,2]
[339169436,1727273448381,-500.0,0.00012895,2]
[339169437,1727273448391,-2475.58,0.00012895,2]
[339169438,1727273448400,-500.0,0.00012895,2]
[339169439,1727273448410,-150.0,0.00012895,2]
[339169440,1727273448419,-1037.38,0.00012895,2]
[339169441,1727273448428,-500.0,0.00012895,2]
[339169442,1727273448438,-560.87,0.00012895,2]
[339169443,1727273448447,-500.0,0.00012895,2]
[339169444,1727273448457,-150.0,0.00012895,2]
[339169445,1727273448466,-500.0,0.00012895,2]
[339169446,1727273448476,-500.0,0.00012895,2]
[339169447,1727273448486,-500.0,0.00012895,2]
[339169448,1727273448495,-526.08,0.00012895,2]
[339169449,1727273448505,-1335.16,0.00012895,2]
[339169450,1727273448514,-819.91,0.00012895,2]
[339169451,1727273448524,-500.0,0.00012895,2]
[339169452,1727273448533,-500.0,0.00012895,2]
[339169453,1727273448542,-500.0,0.00012895,2]
[339169454,1727273448551,-500.0,0.00012895,2]
[339169455,1727273448561,-500.0,0.00012895,2]
[339169456,1727273448570,-676.36,0.00012895,2]
[339169457,1727273448580,-500.0,0.00012895,2]
[339169458,1727273448592,-500.0,0.00012896,2]
[339169459,1727273448603,-500.0,0.00012896,2]
[339169460,1727273448612,-500.0,0.00012896,2]
[339169461,1727273448622,-501.77617545,0.00012896,2]
[339169462,1727273448632,-500.0,0.00012896,2]
[339169463,1727273448642,-500.0,0.00012896,2]
[339169464,1727273448652,-500.0,0.00012896,2]
[339169465,1727273448661,-500.0,0.00012896,2]
[339169466,1727273448670,-500.0,0.00012896,2]
[339169467,1727273448680,-648.2610331,0.00012896,2]
[339169468,1727273448689,-500.0,0.00012896,2]
[339169469,1727273448698,-248.02021132,0.00012896,2]
[339169470,1727273448708,-500.0,0.00012896,2]
[339169471,1727273448717,-500.0,0.00012896,2]
[339169472,1727273448726,-501.56496456,0.00012896,2]
[339169473,1727273448735,-500.0,0.00012896,2]
[339169474,1727273448744,-500.0,0.00012896,2]
[339169475,1727273448755,-501.88532262,0.00012896,2]
[339169476,1727273448764,-500.0,0.00012896,2]
[339169477,1727273448774,-500.0,0.00012896,2]
[339169478,1727273448783,-500.0,0.00012896,2]
[339169479,1727273448792,-500.0,0.00012896,2]
[339169480,1727273448802,-500.0,0.00012896,2]
[339169481,1727273448813,-501.33173265,0.00012896,2]
[339169482,1727273448823,-500.0,0.00012896,2]
[339169483,1727273448832,-500.0,0.00012896,2]
[339169484,1727273448842,-500.0,0.00012896,2]
[339169485,1727273448852,-500.39460186,0.00012896,2]
[339169486,1727273448861,-175.72735415,0.00012896,2]
[339169487,1727273448871,-1136.59,0.00012896,2]
[339169488,1727273448880,-500.0,0.00012896,2]
[339169489,1727273448889,-1120.77,0.00012896,2]
[339169490,1727273448898,-1147.34,0.00012896,2]
[339169491,1727273448907,-552.27,0.00012896,2]
[339169492,1727273448917,-500.0,0.00012896,2]
[339169493,1727273448927,-500.0,0.00012896,2]
[339169494,1727273448936,-500.0,0.00012896,2]
[339169495,1727273448945,-500.0,0.00012896,2]
[339169496,1727273448955,-500.0,0.00012896,2]
[339169497,1727273448964,-577.02,0.00012896,2]
[339169498,1727273448973,-500.0,0.00012896,2]
[339169499,1727273448983,-899.48,0.00012896,2]
[339169500,1727273448992,-500.37822844,0.00012896,2]
[339169501,1727273449002,-597.1,0.00012896,2]
[339169502,1727273449012,-979.75,0.00012896,2]
[339169503,1727273449022,-900.95,0.00012896,2]
[339169504,1727273449031,-649.74,0.00012896,2]
[339169505,1727273449041,-1445.38,0.00012896,2]
[339169506,1727273449050,-500.0,0.00012896,2]
[339169507,1727273449059,-500.0,0.00012896,2]
[339169508,1727273449068,-500.0,0.00012896,2]
[339169509,1727273449078,-500.0,0.00012896,2]
[339169510,1727273449089,-257.20339198,0.00012896,2]
[339169511,1727273449098,-500.0,0.00012896,2]
[339169512,1727273449108,-500.0,0.00012896,2]
[339169513,1727273449117,-500.0,0.00012896,2]
[339169514,1727273449126,-500.0,0.00012896,2]
[339169515,1727273449135,-500.0,0.00012896,2]
[339169516,1727273449145,-500.0,0.00012896,2]
[339169517,1727273449155,-500.0,0.00012896,2]
[339169518,1727273449164,-4164.09,0.00012896,2]
[339169519,1727273449174,-724.52,0.00012896,2]
[339169520,1727273449184,-500.0,0.00012896,2]
[339169521,1727273449193,-5633.44,0.00012896,2]
[339169522,1727273449203,-500.0,0.00012896,2]
[339169523,1727273449213,-516.67,0.00012896,2]
[339169524,1727273449222,-500.0,0.00012896,2]
[339169525,1727273449232,-1854.31,0.00012896,2]
[339169526,1727273449242,-500.0,0.00012896,2]
[339169527,1727273449252,-500.0,0.00012896,2]
[339169528,1727273449262,-1580.12,0.00012896,2]
[339169529,1727273449272,-500.0,0.00012896,2]
[339169530,1727273449281,-500.0,0.00012896,2]
[339169531,1727273449290,-169.90810713,0.00012896,2]
[339169532,1727273449300,-1132.65,0.00012896,2]
[339169533,1727273449309,-500.0,0.00012896,2]
[339169534,1727273449318,-1893.02,0.00012896,2]
[339169535,1727273449328,-500.0,0.00012896,2]
[339169536,1727273449339,-2373.4,0.00012896,2]
[339169537,1727273449348,-1030.35,0.00012896,2]
[339169538,1727273449358,-2171.5,0.00012896,2]
[339169539,1727273449368,-500.0,0.00012896,2]
[339169540,1727273449378,-5059.45,0.00012896,2]
[339169541,1727273449387,-2799.94,0.00012896,2]
[339169542,1727273449396,-1477.97,0.00012896,2]
[339169543,1727273449406,-500.0,0.00012896,2]
[339169544,1727273449415,-3612.8,0.00012896,2]
[339169545,1727273449424,-1281.84,0.00012896,2]
[339169546,1727273449433,-896.43,0.00012896,2]
[339169547,1727273449443,-500.0,0.00012896,2]
[339169548,1727273449452,-500.0,0.00012896,2]
[339169549,1727273449461,-508.45,0.00012896,2]
[339169550,1727273449471,-500.0,0.00012896,2]
[339169551,1727273449480,-500.0,0.00012896,2]
[339169552,1727273449489,-3918.91,0.00012896,2]
[339169553,1727273449498,-1947.44,0.00012896,2]
[339169554,1727273449508,-500.0,0.00012896,2]
[339169555,1727273449517,-515.13817958,0.00012896,2]
[339169556,1727273449527,-635.94404901,0.00012896,2]
[339169557,1727273449536,-500.0,0.00012896,2]
[339169558,1727273449546,-500.0,0.00012896,2]
[339169559,1727273449555,-500.0,0.00012896,2]
[339169560,1727273449564,-630.53,0.00012896,2]
[339169561,1727273449574,-577.45,0.00012896,2]
[339169562,1727273449583,-500.0,0.00012896,2]